bitfinex-derivatives/quotes_ETHF0:USTF0_20250727
["timestamp","ask_amount","ask_price","bid_price","bid_amount"]
[1753582379998,2.57334473,3765.3,3765.2,0.53099]
[1753582380398,2.57334473,3765.3,3765.2,2.38239]
[1753582381903,0.81394473,3765.3,3765.2,2.38239]
[1753582385802,0.8153962,3765.3,3765.2,2.38239]
[1753582386203,0.018,3765.3,3765.2,2.38239]
[1753582386601,0.6006,3765.6,3765.5,2.38235]
[1753582386803,1.39799835,3765.6,3765.5,2.38235]
[1753582387504,2.30629835,3765.6,3765.5,2.38235]
[1753582388405,2.60349835,3765.6,3765.5,2.38235]
[1753582388807,2.60349835,3765.6,3765.5,1.92415]
[1753582389005,2.60349835,3765.6,3765.5,0.53095]
[1753582389210,1.8061,3765.6,3765.5,0.53095]
[1753582391211,1.8061,3765.6,3765.5,2.38235]
[1753582392608,2.0061,3765.9,3765.8,2.3823]
[1753582393113,0.2,3765.9,3765.8,2.3823]
[1753582393612,0.2,3765.9,3765.8,2.59379258]
[1753582393912,0.861,3766.5,3766.4,0.7281]
[1753582394209,0.4517,3766.8,3766.7,2.38218]
[1753582394610,1.6305096,3766.8,3766.7,2.38218]
[1753582394916,0.7804096,3766.8,3766.7,2.38218]
[1753582395110,0.2022,3767.0,3766.9,1.25885]
[1753582395306,0.98252243,3767.0,3766.9,2.38215]
[1753582395706,0.78032243,3767.0,3766.9,2.38215]
[1753582396317,1.8061,3767.5,3767.4,1.8514]
[1753582396510,2.58586186,3767.5,3767.4,1.8514]
[1753582396717,2.58586186,3767.5,3767.4,2.38208]
[1753582396910,2.58586186,3767.5,3767.4,1.8514]
[1753582397110,2.58586186,3767.5,3767.4,2.38208]
[1753582398107,2.58586186,3767.5,3767.4,1.8514]
[1753582398519,1.8061,3767.5,3767.4,1.8514]
[1753582398716,2.58529338,3767.5,3767.4,1.8514]
[1753582399018,1.8061,3767.5,3767.4,2.38208]
[1753582399718,1.8061,3767.5,3767.4,1.8514]
[1753582399922,1.8061,3767.5,3767.4,2.38208]
[1753582403222,1.8061,3767.5,3767.4,1.427]
[1753582403518,1.8061,3767.2,3767.1,2.38211]
[1753582403713,1.8061,3767.2,3767.1,0.53071]
[1753582403916,1.8061,3767.0,3766.8,0.53075]
[1753582404116,1.0572,3766.9,3766.8,1.19585]
[1753582404318,1.8061,3766.9,3766.8,1.19585]
[1753582404513,1.8061,3766.9,3766.8,2.15125]
[1753582404822,1.8061,3766.9,3766.8,1.8514]
[1753582405118,0.7489,3766.6,3766.5,1.7171]
[1753582405319,1.8061,3766.6,3766.5,1.7171]
[1753582405721,1.8061,3766.6,3766.5,2.3822]
[1753582406323,1.4999,3766.6,3766.5,2.3822]
[1753582406520,1.0572,3767.2,3766.9,1.1233]
[1753582406720,1.5089,3767.2,3767.1,2.38212]
[1753582407113,1.8061,3767.2,3767.1,2.38212]
[1753582407918,0.5741,3767.4,3767.3,0.53069]
[1753582408120,1.5029,3767.4,3767.3,2.33539]
[1753582408317,1.8128,3767.4,3767.3,1.8047]
[1753582408625,0.7335,3767.4,3767.2,0.53071]
[1753582408820,1.5665,3767.2,3767.1,0.6543]
[1753582409027,1.8128,3767.2,3767.1,0.53072]
[1753582410220,1.8128,3767.2,3767.1,1.18502]
[1753582410622,1.8128,3767.2,3767.1,0.53072]
[1753582411126,1.8128,3766.9,3766.8,0.53076]
[1753582411516,1.8128,3766.9,3766.8,1.66856]
[1753582411823,1.0793,3766.8,3766.2,1.0832]
[1753582412020,0.2,3767.9,3766.2,1.0832]
[1753582412021,1.8128,3766.3,3766.2,2.33555]
[1753582412328,0.7335,3766.3,3765.7,21.256]
[1753582412529,1.8128,3766.1,3766.0,2.33558]
[1753582413029,1.8128,3766.1,3766.0,1.25238]
[1753582413525,0.3099,3766.0,3765.8,0.5309]
[1753582413721,1.8128,3765.9,3765.8,1.0144]
[1753582414325,1.8128,3765.9,3765.8,1.6687]
[1753582414522,1.5301,3766.2,3766.1,1.3758]
[1753582414821,1.8128,3766.2,3766.1,1.8047]
[1753582415029,1.8128,3766.2,3766.1,2.33556]
[1753582415225,1.8128,3766.2,3766.1,1.8047]
[1753582415618,1.8128,3766.2,3766.1,2.33556]
[1753582417316,1.8128,3766.2,3766.1,1.8047]
[1753582417517,1.8128,3766.2,3766.1,2.33556]
[1753582418727,1.8128,3766.2,3766.1,1.25236]
[1753582418924,1.8128,3766.2,3766.1,0.53086]
[1753582420230,1.8128,3766.2,3766.1,0.87276]
[1753582420730,1.8128,3766.2,3766.1,1.18516]
[1753582421227,1.8128,3766.2,3766.1,1.37416]
[1753582421426,1.8128,3766.2,3766.1,1.80306]
[1753582422031,0.7335,3765.9,3765.8,1.8047]
[1753582422334,1.8128,3765.9,3765.8,2.3356]
[1753582425127,1.8128,3765.9,3765.8,1.2524]
[1753582425321,1.8128,3765.9,3765.8,2.3356]
[1753582427721,2.34369,3765.9,3765.7,0.53091]
[1753582427934,1.8128,3765.8,3765.7,0.53091]
[1753582428232,1.8128,3765.8,3765.7,1.18521]
[1753582428527,1.8128,3765.8,3765.7,1.37421]
[1753582428733,1.8128,3765.8,3765.7,1.80311]
[1753582429032,2.3437,3765.8,3765.7,1.80312]
[1753582429239,1.8128,3765.8,3765.7,1.80312]
[1753582429927,1.8128,3765.8,3765.7,2.33562]
[1753582430532,1.8128,3765.8,3765.7,1.90672]
[1753582431134,2.3437,3765.8,3765.7,1.8047]
[1753582431333,2.3437,3765.8,3765.7,0.53092]
[1753582431536,1.8128,3765.8,3765.7,0.53092]
[1753582431836,1.8128,3765.8,3765.7,1.61412]
[1753582432136,1.8128,3765.8,3765.7,2.33562]
[1753582432728,2.3437,3765.8,3765.7,2.33562]
[1753582432933,2.3437,3765.8,3765.7,1.8047]
[1753582433139,2.3437,3765.8,3765.7,2.33562]
[1753582433435,1.8128,3765.8,3765.7,2.33562]
[1753582433637,2.3437,3765.8,3765.7,2.33562]
[1753582433838,1.8128,3765.8,3765.7,2.33562]
[1753582434138,2.3437,3765.8,3765.7,2.33562]
[1753582434334,2.34373,3765.6,3765.5,0.2945]
[1753582434632,0.7335,3765.4,3765.2,0.4289]
[1753582434937,2.34379,3765.2,3765.1,0.3419]
[1753582435340,2.34379,3765.2,3765.1,0.6543]
[1753582435540,2.34379,3765.2,3765.1,1.8032]
[1753582435741,1.8128,3765.2,3765.1,2.0977]
[1753582435930,2.34379,3765.2,3765.1,2.0977]
[1753582436133,2.34379,3765.2,3765.1,0.531]
[1753582436834,1.8128,3765.2,3765.1,0.72]
[1753582437035,1.8128,3765.2,3765.1,2.3357]
[1753582440330,2.34379,3765.2,3765.1,2.3357]
[1753582440935,1.8128,3765.2,3765.1,2.3357]
[1753582443239,2.34379,3765.2,3765.1,2.3357]
[1753582443436,1.8128,3765.2,3765.1,2.3357]
[1753582447745,2.34379,3765.2,3765.1,2.3357]
[1753582448538,1.8128,3765.2,3765.1,2.3357]
[1753582449045,2.34379,3765.2,3765.1,2.3357]
[1753582449445,2.34379,3765.2,3765.1,1.8047]
[1753582451042,1.58323,3764.9,3764.8,1.854]
[1753582451242,1.0522,3764.9,3764.8,2.38505]
[1753582451642,2.31483,3764.9,3764.8,1.854]
[1753582452042,2.31483,3764.9,3764.8,1.3861]
[1753582452450,2.31483,3764.9,3764.8,2.38504]
[1753582454154,2.31483,3764.9,3764.8,1.854]
[1753582454753,2.31483,3764.9,3764.8,2.38504]
[1753582457654,2.31483,3764.9,3764.8,1.854]
[1753582458655,2.31483,3764.9,3764.8,2.38504]
[1753582459452,0.743,3765.4,3765.3,1.5631]
[1753582459657,1.27398,3765.4,3765.3,1.854]
[1753582460055,2.31478,3765.4,3765.3,1.854]
[1753582461668,2.31482,3765.0,3764.9,1.28162]
[1753582461869,1.7838,3765.0,3764.9,1.28162]
[1753582462273,1.7838,3765.0,3764.9,2.38502]
[1753582464273,0.2046,3765.0,3764.9,2.38502]
[1753582464467,0.8455,3765.2,3765.1,1.2816]
[1753582464664,1.4863,3765.2,3765.1,2.385]
[1753582467473,2.01729,3765.2,3765.1,2.385]
[1753582468077,2.31479,3765.2,3765.1,2.385]
[1753582471371,2.31479,3765.2,3765.1,1.854]
[1753582471875,2.31479,3765.2,3765.1,2.385]
[1753582472575,1.7674,3765.4,3765.3,1.24157]
[1753582472772,1.7674,3765.4,3765.3,2.34947]
[1753582472981,1.1753,3765.4,3765.3,2.34947]
[1753582473277,0.5954,3765.4,3765.3,2.34947]
[1753582474178,0.1961,3765.9,3765.8,1.2415]
[1753582474379,0.99611675,3765.9,3765.8,2.3494]
[1753582475367,1.75511675,3765.9,3765.8,2.3494]
[1753582475567,0.9551,3765.9,3765.8,2.3494]
[1753582475981,1.2602,3766.1,3766.0,2.34938]
[1753582476273,0.1961,3766.1,3766.0,2.34938]
[1753582476780,0.5954,3766.1,3766.0,2.34938]
[1753582477275,0.9551,3766.1,3766.0,2.34938]
[1753582477573,1.7674,3766.1,3766.0,2.34938]
[1753582482380,1.0641,3767.1,3766.8,0.3568]
[1753582482678,1.7674,3766.9,3766.8,2.34926]
[1753582482876,2.56565349,3766.9,3766.8,2.34926]
[1753582483984,2.56565349,3766.9,3766.8,0.53076]
[1753582484381,1.57425349,3766.9,3766.8,2.34926]
[1753582484686,0.79825349,3766.9,3766.8,2.34926]
[1753582485278,0.9005,3767.3,3767.2,2.34921]
[1753582485478,1.69374678,3767.3,3767.2,2.34921]
[1753582486085,1.4804,3767.3,3767.2,2.34921]
[1753582487088,1.7674,3767.3,3767.2,2.34921]
[1753582488387,0.7033,3767.0,3766.9,0.53074]
[1753582488578,1.3681,3766.4,3766.3,2.34933]
[1753582488782,1.7674,3766.4,3766.3,2.34933]
[1753582489784,2.29822,3766.4,3766.3,2.34933]
[1753582489985,1.7674,3766.4,3766.3,2.34933]
[1753582490383,1.0641,3766.3,3766.0,1.1079]
[1753582490582,1.1207,3766.3,3766.2,0.53085]
[1753582490782,1.32672,3767.4,3765.8,1.32724]
[1753582490783,1.52653,3767.9,3765.8,1.32724]
[1753582490989,0.7033,3766.9,3766.8,1.24135]
[1753582491189,0.5558,3767.1,3767.0,1.24133]
[1753582491490,0.1961,3767.1,3767.0,2.34923]
[1753582491790,0.5949,3767.1,3767.0,2.34923]
[1753582492192,1.1748,3767.1,3767.0,2.34923]
[1753582492388,1.4799,3767.1,3767.0,2.34923]
[1753582492589,1.7669,3767.1,3767.0,2.34923]
[1753582493992,1.4072,3767.4,3767.3,0.82629]
[1753582494198,1.7669,3767.4,3767.3,2.34919]
[1753582499590,1.7377,3767.7,3767.6,2.30475]
[1753582500895,0.718,3767.4,3767.3,1.2542]
[1753582501198,1.7377,3767.4,3767.3,2.30479]
[1753582503000,2.26838,3767.4,3767.3,1.3459]
[1753582503198,2.26838,3767.4,3767.3,0.81509]
[1753582503394,1.7377,3767.4,3767.3,0.81509]
[1753582503797,1.7377,3767.4,3767.3,2.06929]
[1753582503993,1.7377,3767.4,3767.3,2.30479]
[1753582504692,1.7377,3767.7,3767.6,2.30475]
[1753582505098,1.1861,3767.7,3767.6,2.30475]
[1753582505287,0.1987,3767.7,3767.6,2.30475]
[1753582505493,1.7377,3767.7,3767.6,2.30475]
[1753582507793,1.1184,3767.7,3767.6,2.30475]
[1753582508001,0.9006,3767.7,3767.6,2.30475]
[1753582508299,0.1987,3767.7,3767.6,2.30475]
[1753582508895,1.3507,3767.9,3767.8,2.30472]
[1753582509102,0.3987,3767.9,3767.8,2.30472]
[1753582509302,0.2,3767.9,3767.8,2.30472]
[1753582509605,1e-05,3767.9,3767.8,2.30472]
[1753582511596,1.73771,3767.9,3767.8,2.30472]
[1753582513302,1.45221,3767.9,3767.8,2.30472]
[1753582513494,1e-05,3767.9,3767.8,1.23912]
[1753582519400,1e-05,3768.3,3768.2,0.53057]
[1753582519599,1e-05,3768.3,3768.2,2.30467]
[1753582521206,1.0197,3769.7,3768.7,1.32621]
[1753582521412,2.52964532,3769.6,3769.5,0.53038]
[1753582521811,7.52964532,3769.6,3769.5,0.53038]
[1753582522707,1.7377,3769.6,3769.5,0.53038]
[1753582523909,1.7377,3769.6,3769.5,2.30448]
[1753582524912,1.4522,3769.6,3769.5,2.30448]
[1753582525113,1.1184,3769.6,3769.5,2.30448]
[1753582525311,0.8169,3769.6,3769.5,2.30448]
[1753582526017,0.8193,3769.9,3769.1,1.3261]
[1753582526018,1.9377,3769.9,3769.8,2.30444]
[1753582526313,1.6522,3769.9,3769.8,2.30444]
[1753582526513,1.3184,3769.9,3769.8,2.30444]
[1753582526916,1.9377,3769.9,3769.8,2.30444]
[1753582527914,1.6522,3769.9,3769.8,2.30444]
[1753582528219,1.3184,3769.9,3769.8,2.30444]
[1753582528614,1.1006,3769.9,3769.8,2.30444]
[1753582528811,1.6738,3769.9,3769.8,2.30444]
[1753582529122,0.2,3769.9,3769.8,2.30444]
[1753582535026,0.9239,3769.9,3769.8,0.81474]
[1753582535226,1.9672,3769.9,3769.8,0.53034]
[1753582535930,1.9672,3769.9,3769.8,1.15964]
[1753582536225,1.9672,3769.9,3769.8,1.58924]
[1753582536430,1.9672,3769.9,3769.8,2.30784]
[1753582537624,1.394,3769.9,3769.8,2.30784]
[1753582537830,1.9672,3769.9,3769.8,1.08054]
[1753582538031,1.9672,3769.9,3769.8,0.53034]
[1753582538825,1.9672,3769.9,3769.8,1.15964]
[1753582539235,1.9672,3769.9,3769.8,2.30784]
[1753582545740,0.2,3769.9,3769.8,2.30784]
[1753582546136,0.4009,3769.9,3769.8,2.30784]
[1753582546337,0.7991,3769.9,3769.8,2.30784]
[1753582547234,1.6749,3769.9,3769.8,2.30784]
[1753582548936,0.2,3769.9,3769.8,2.30784]
[1753582550538,1.9672,3769.9,3769.8,1.58924]
[1753582550839,1.9672,3769.9,3769.8,1.15964]
[1753582551041,1.9672,3769.9,3769.8,2.00274]
[1753582551242,1.9672,3769.9,3769.8,2.30784]
[1753582552341,0.2,3769.9,3769.8,2.30784]
[1753582553944,1.7672,3770.7,3770.6,1.24883]
[1753582554243,2.56133641,3770.7,3770.6,2.30773]
[1753582556344,3.09155641,3770.7,3770.6,2.30773]
[1753582557244,3.09155641,3770.7,3770.6,1.7775]
[1753582559154,0.53026,3770.4,3769.3,1.32603]
[1753582559345,0.53026,3770.4,3763.6,15.26217804]
[1753582559346,1.05959,3770.2,3770.1,0.5273]
[1753582559546,2.26659,3770.2,3770.1,1.7923]
[1753582560747,2.26659,3770.2,3770.1,2.3226]
[1753582561144,1.25533,3769.9,3769.8,1.7923]
[1753582561349,2.26663,3769.9,3769.8,1.7923]
[1753582561549,1.7363,3769.9,3769.8,2.32264]
[1753582562139,0.1957,3769.9,3769.8,2.32264]
[1753582562345,0.1957,3770.1,3770.0,2.32261]
[1753582562644,0.1957,3770.3,3770.2,2.32259]
[1753582562846,0.4187,3770.5,3770.4,1.25445]
[1753582563049,1.136,3770.5,3770.4,1.25445]
[1753582563346,1.86844,3770.5,3770.4,0.7242]
[1753582563554,2.26654,3770.5,3770.4,1.3539]
[1753582563744,2.26654,3770.5,3770.4,1.7923]
[1753582563944,1.7363,3770.5,3770.4,2.32256]
[1753582564452,1.5133,3770.8,3770.7,0.7242]
[1753582564647,2.2665,3770.8,3770.7,2.32252]
[1753582564849,2.2665,3770.8,3770.7,1.7923]
[1753582565352,2.2665,3770.8,3770.6,0.53022]
[1753582565353,2.26653,3770.6,3770.5,2.32254]
[1753582565551,2.26653,3770.6,3770.5,0.9325]
[1753582566653,2.26653,3770.6,3770.5,1.1294]
[1753582567153,2.26653,3770.6,3770.5,1.7923]
[1753582567742,2.26653,3770.6,3770.5,2.32254]
[1753582569054,2.26653,3770.6,3770.5,1.7923]
[1753582569752,1.32541,3771.1,3770.1,1.25449]
[1753582569753,0.725,3770.2,3770.1,1.25449]
[1753582570056,0.725,3770.2,3770.1,1.7923]
[1753582570057,2.26659,3770.2,3770.1,1.7923]
[1753582570945,0.53033,3769.9,3769.8,1.99863]
[1753582571145,0.53033,3769.9,3769.8,2.32263]
[1753582571146,2.26663,3769.9,3769.8,2.32263]
[1753582571448,1.7363,3769.9,3769.8,2.32263]
[1753582573960,2.26663,3769.9,3769.8,2.32263]
[1753582574859,1.7363,3769.9,3769.8,2.32263]
[1753582576760,2.26663,3769.9,3769.8,2.32263]
[1753582577459,1.7363,3769.9,3769.8,2.32263]
[1753582578456,0.4187,3769.9,3769.8,2.32263]
[1753582578657,0.72597,3770.4,3770.3,1.25447]
[1753582578859,1.72437,3770.4,3770.3,2.32257]
[1753582579164,0.4897,3770.6,3770.5,1.57844]
[1753582579457,0.725,3770.9,3770.8,1.25439]
[1753582579657,1.1231,3770.9,3770.8,1.69279]
[1753582579861,2.26649,3770.9,3770.8,1.1626]
[1753582580062,2.26649,3770.9,3770.8,2.3225]
[1753582581261,2.26649,3770.9,3770.8,1.7923]
[1753582581462,2.26649,3770.9,3770.8,2.3225]
[1753582581865,2.26649,3770.9,3770.8,1.7923]
[1753582582065,2.26649,3770.9,3770.8,2.3225]
[1753582582558,2.26649,3770.9,3770.8,1.7923]
[1753582582959,2.26649,3770.9,3770.8,2.3225]
[1753582583264,2.26649,3770.9,3770.8,0.3028]
[1753582583465,2.26649,3770.9,3770.8,0.6268]
[1753582583859,2.26649,3770.9,3770.8,1.5678]
[1753582584460,0.53022,3770.7,3770.6,0.53023]
[1753582584661,0.73049,3770.2,3769.7,0.7624]
[1753582584865,0.725,3770.1,3770.0,1.25451]
[1753582585069,0.725,3770.1,3770.0,1.56021]
[1753582585365,1.97256,3770.4,3770.3,0.4214]
[1753582585566,1.97256,3770.4,3770.3,1.7923]
[1753582586165,2.17276,3770.4,3770.3,1.3539]
[1753582586665,2.96673148,3770.4,3770.3,1.3539]
[1753582588369,2.76653148,3770.4,3770.3,1.8198]
[1753582589065,1.4423,3770.4,3770.3,2.35007]
[1753582589268,1.97256,3770.4,3770.3,2.35007]
[1753582589769,1.24834,3770.5,3770.4,1.8098]
[1753582590068,1.96334,3770.5,3770.4,1.8098]
[1753582592070,0.7181,3770.6,3770.5,0.7299]
[1753582592366,1.96333,3770.6,3770.5,1.8098]
[1753582593568,1.96333,3770.6,3770.5,2.34004]
[1753582593768,1.96333,3770.6,3770.5,1.8098]
[1753582594571,2.16373,3770.6,3770.5,1.8098]
[1753582594771,2.95741011,3770.6,3770.5,0.2965]
[1753582595669,2.16373,3770.6,3770.5,0.2965]
[1753582595873,1.96333,3770.6,3770.5,1.8098]
[1753582597373,1.96333,3770.6,3770.5,1.3439]
[1753582597573,2.16373,3770.6,3770.5,1.3439]
[1753582597980,1.96333,3770.6,3770.5,1.8098]
[1753582599978,1.96333,3770.6,3770.5,2.34004]
[1753582600278,1.43898969,3770.6,3770.5,2.34004]
[1753582600779,1.96921969,3770.6,3770.5,2.34004]
[1753582601477,1.96921969,3770.6,3770.5,1.8098]
[1753582601877,1.96921969,3770.6,3770.5,2.34004]
[1753582602476,1.96921969,3770.6,3770.5,1.8098]
[1753582602675,1.96921969,3770.6,3770.5,2.34004]
[1753582603279,0.00588969,3770.6,3770.5,2.34004]
[1753582604771,1.43898969,3770.6,3770.5,2.34004]
[1753582605373,1.96921969,3770.6,3770.5,2.34004]
[1753582605575,1.43898969,3770.6,3770.5,2.34004]
[1753582606480,1.96921969,3770.6,3770.5,2.34004]
[1753582606683,1.43898969,3770.6,3770.5,2.34004]
[1753582606884,0.40418969,3770.6,3770.5,2.34004]
[1753582607084,0.00588969,3770.6,3770.5,2.34004]
[1753582616490,1.43898969,3770.6,3770.5,2.34004]
[1753582617986,0.61638969,3770.6,3770.5,2.34004]
[1753582618282,0.00588969,3770.6,3770.5,2.34004]
[1753582618487,1.45508969,3770.6,3770.5,2.34004]
[1753582619892,0.00588969,3770.6,3770.5,2.34004]
[1753582620791,0.95378969,3770.6,3770.5,2.34004]
[1753582621087,0.00588969,3770.6,3770.5,2.34004]
[1753582621888,0.41508969,3770.6,3770.5,2.34004]
[1753582622087,0.22678969,3770.6,3770.5,2.34004]
[1753582622388,1.45508969,3770.6,3770.5,2.34004]
[1753582622990,0.00588969,3770.6,3770.5,2.34004]
[1753582625000,1.45618969,3770.6,3770.5,2.34004]
[1753582627197,0.62608969,3770.6,3770.5,2.34004]
[1753582630901,0.00588969,3770.6,3770.5,2.34004]
[1753582631101,0.40518969,3770.6,3770.5,2.34004]
[1753582631599,0.00588969,3770.6,3770.5,2.34004]
[1753582632100,1.12738969,3770.6,3770.5,2.34004]
[1753582632300,1.45618969,3770.6,3770.5,2.34004]
[1753582634204,1.65718969,3770.6,3770.5,0.82674]
[1753582634605,2.18741969,3770.6,3770.5,0.82674]
[1753582635098,0.40518969,3770.6,3770.5,1.85394]
[1753582635298,0.73398969,3770.6,3770.5,2.28514]
[1753582635800,1.45618969,3770.6,3770.5,2.28514]
[1753582636393,1.65718969,3770.6,3770.5,0.2965]
[1753582636591,2.18157,3770.3,3770.2,0.2989]
[1753582636798,0.7222,3769.7,3769.6,0.4986]
[1753582637102,1.6513,3769.7,3769.6,1.46967]
[1753582637397,1.4503,3769.7,3769.6,2.28767]
[1753582642296,1.6513,3769.7,3769.6,2.28767]
[1753582644505,1.4503,3769.7,3769.6,2.28767]
[1753582647005,1.6513,3769.7,3769.6,2.28767]
[1753582647407,1.6513,3769.7,3769.6,1.85647]
[1753582647813,1.6513,3769.7,3769.6,2.30037]
[1753582648008,1.4503,3769.7,3769.6,2.30037]
[1753582650607,1.408,3770.0,3769.9,1.24263]
[1753582650804,0.8799,3770.3,3770.2,2.32249]
[1753582651009,0.00588969,3770.6,3770.5,2.32244]
[1753582651010,1.41388969,3770.6,3770.5,2.32244]
[1753582651212,0.00588969,3770.6,3770.5,2.32244]
[1753582653812,1.41388969,3770.6,3770.5,2.32244]
[1753582654116,1.6089,3770.4,3770.3,0.3065]
[1753582654412,2.13916,3770.4,3770.3,0.3065]
[1753582654613,0.39948969,3770.6,3770.5,2.32244]
[1753582654820,0.00588969,3770.6,3770.5,2.32244]
[1753582659508,1.2308,3771.3,3771.2,1.03345]
[1753582659713,1.426,3771.3,3771.2,2.32235]
[1753582661020,0.4171,3771.3,3771.2,2.32235]
[1753582661222,1.426,3771.3,3771.2,2.32235]
[1753582674332,0.8979,3771.3,3771.2,2.32235]
[1753582674532,1.426,3771.3,3771.2,2.32235]
[1753582680730,0.9215,3771.2,3771.1,0.3092]
[1753582680931,1.6285,3771.2,3771.1,0.83936]
[1753582681134,1.4276,3771.2,3771.1,2.29446]
[1753582681930,0.018,3771.3,3771.2,0.53015]
[1753582682138,0.4171,3771.3,3771.2,2.29445]
[1753582682337,0.9385,3771.3,3771.2,2.29445]
[1753582682532,1.4456,3771.3,3771.2,2.29445]
[1753582687239,0.617,3771.3,3771.2,2.29445]
[1753582687439,1.4456,3771.3,3771.2,2.29445]
[1753582696046,1.6465,3771.3,3771.2,0.83935]
[1753582696237,1.4456,3771.3,3771.2,2.29445]
[1753582699450,1.6465,3771.3,3771.2,2.29445]
[1753582703155,1.6465,3771.3,3770.9,0.7568]
[1753582703356,1.6285,3771.2,3771.1,0.53016]
[1753582703550,1.4276,3771.2,3771.1,2.29446]
[1753582705457,0.018,3771.3,3770.6,1.32557]
[1753582705458,0.018,3771.3,3771.2,2.29445]
[1753582708357,0.2,3771.9,3771.8,2.29436]
[1753582708751,1.638,3771.9,3771.8,2.29436]
[1753582709256,1.638,3771.9,3771.8,2.62627813]
[1753582709456,1.8389,3771.9,3771.8,2.18377813]
[1753582709656,1.8389,3771.9,3771.8,1.16127813]
[1753582709858,2.36895,3771.9,3771.8,0.33191813]
[1753582710051,1.6389,3771.3,3771.2,0.82945]
[1753582710348,0.7184,3770.3,3770.2,1.16747]
[1753582710548,1.6389,3770.3,3770.2,0.72497]
[1753582710750,1.6389,3770.3,3770.2,1.02427]
[1753582711753,1.6389,3770.3,3770.2,0.2993]
[1753582711950,1.6389,3770.3,3770.0,0.3069]
[1753582711951,0.9205,3770.0,3769.8,0.2993]
[1753582712248,1.438,3769.6,3769.5,1.33128]
[1753582712449,1.438,3769.6,3769.5,2.29468]
[1753582715563,1.1354,3769.6,3769.5,2.29468]
[1753582715956,0.9327,3769.6,3769.5,2.29468]
[1753582717165,0.3026,3769.8,3769.7,1.24596]
[1753582717360,1.32542,3771.1,3768.9,0.7156]
[1753582717361,2.16935,3769.0,3768.9,0.7156]
[1753582717661,1.1953,3768.4,3768.3,0.53055]
[1753582717860,0.76420915,3768.4,3768.3,0.82985]
[1753582718163,0.76420915,3768.4,3768.3,0.2993]
[1753582718164,0.57910915,3768.4,3768.3,0.2993]
[1753582718462,0.57910915,3768.4,3768.3,1.33145]
[1753582718661,0.57910915,3768.4,3768.3,1.54205]
[1753582719961,0.57910915,3768.4,3768.3,0.2993]
[1753582720166,0.53055,3768.3,3768.2,0.01857626]
[1753582720365,1.10965,3768.3,3768.2,0.31787626]
[1753582720566,0.5791,3768.3,3768.2,0.31787626]
[1753582721065,1.10965,3768.3,3768.2,0.62477626]
[1753582721659,1.10965,3768.3,3768.2,0.31787626]
[1753582721856,1.10965,3768.3,3768.2,0.01857626]
[1753582722055,0.8381,3768.0,3767.9,0.2993]
[1753582722362,1.0912,3768.0,3767.9,0.2993]
[1753582722569,1.09121,3767.9,3767.5,0.2993]
[1753582722768,1.09121,3767.9,3767.8,0.80259848]
[1753582723263,0.5606,3767.9,3767.8,1.20789848]
[1753582723462,1.09121,3767.9,3767.8,1.96069848]
[1753582723657,0.5606,3767.9,3767.8,1.96069848]
[1753582724366,0.5606,3767.9,3767.8,2.49131848]
[1753582727165,0.5305,3768.7,3768.1,1.7643]
[1753582727365,0.5606,3768.5,3768.4,2.29484]
[1753582732271,1.32577,3770.1,3769.2,0.53042]
[1753582732474,0.5606,3769.3,3769.2,1.7643]
[1753582732671,0.5606,3769.3,3769.2,2.29473]
[1753582733769,1.09101,3769.3,3769.2,2.29473]
[1753582733970,0.5606,3769.3,3769.2,2.29473]
[1753582735371,1.09101,3769.3,3769.2,1.7643]
[1753582736163,0.5606,3768.9,3768.8,1.454]
[1753582736369,1.09107,3768.9,3768.8,0.2993]
[1753582736674,1.09111,3768.6,3768.5,0.2993]
[1753582738073,0.5372,3768.3,3768.2,0.3083]
[1753582738264,1.06775,3768.3,3768.2,0.3083]
[1753582739873,1.06775,3768.3,3768.2,0.6261]
[1753582740374,1.06775,3768.3,3768.2,1.3169]
[1753582740572,1.32612,3769.1,3768.3,1.59675]
[1753582740772,1.32612,3769.1,3767.8,0.19639848]
[1753582740773,1.06771,3768.6,3768.5,1.757]
[1753582740973,1.85164871,3768.6,3768.5,1.757]
[1753582741272,1.06775,3768.3,3768.2,0.8278]
[1753582741473,1.32113871,3768.3,3768.2,1.757]
[1753582741668,0.78393871,3768.3,3768.2,1.757]
[1753582741869,1.06764,3769.1,3769.0,0.2047]
[1753582742173,1.85238499,3769.1,3769.0,1.0325]
[1753582743174,1.85238499,3769.1,3769.0,0.8308]
[1753582743372,1.85238499,3769.1,3769.0,0.6261]
[1753582743677,1.85238499,3769.1,3769.0,1.757]
[1753582744476,1.32194499,3769.1,3769.0,1.757]
[1753582744669,0.78474499,3769.1,3769.0,2.28745]
[1753582747176,1.43153234,3769.7,3769.6,1.22117]
[1753582747375,1.43153234,3769.7,3769.6,2.28737]
[1753582748278,1.43153234,3769.7,3769.6,1.757]
[1753582749276,1.43153234,3769.7,3769.6,2.28737]
[1753582749472,2.64209234,3769.7,3769.6,0.9991]
[1753582749673,1.21061,3769.3,3769.2,1.4487]
[1753582749867,2.19321,3769.3,3769.2,1.4487]
[1753582750180,2.19321,3769.3,3769.2,1.757]
[1753582750572,1.6628,3769.3,3769.2,1.757]
[1753582750772,2.19321,3769.3,3769.2,1.757]
[1753582750975,2.19321,3769.3,3769.2,1.3169]
[1753582751275,1.01309,3768.8,3768.7,0.513]
[1753582751476,1.50019,3768.8,3768.7,0.513]
[1753582751976,2.19329,3768.8,3768.7,0.8308]
[1753582752678,2.19329,3768.8,3768.7,1.757]